bitfinex-derivatives/quotes_SOLF0:USTF0_20250106
["timestamp","ask_amount","ask_price","bid_price","bid_amount"]
[1736152341488,2.72,214.58,214.52,7.28870354]
[1736152341791,2.72,214.57,214.52,7.28870354]
[1736152341981,10.00870354,214.57,214.49,7.28870354]
[1736152343491,12.33970354,214.57,214.49,7.28870354]
[1736152344595,12.33970354,214.57,214.42,4.383]
[1736152344596,7.28870354,214.55,214.52,2.3314]
[1736152344893,2.72,214.57,214.49,7.28870354]
[1736152345096,7.28870354,214.56,214.49,7.28870354]
[1736152345890,7.28870354,214.56,214.42,4.383]
[1736152346091,7.28870354,214.52,214.45,7.28870354]
[1736152346396,2.72,214.51,214.45,7.28870354]
[1736152346797,2.72,214.51,214.47,7.28870354]
[1736152347396,2.72,214.51,214.5,2.3318]
[1736152355589,2.72,214.51,214.49,2.3318]
[1736152362996,5.0517,214.51,214.48,2.332]
[1736152363707,5.0517,214.51,214.47,2.3321]
[1736152368317,2.72,214.51,214.48,2.3319]
[1736152368615,2.72,214.51,214.46,7.28870354]
[1736152369116,5.0517,214.51,214.48,2.3319]
[1736152369816,2.72,214.51,214.48,2.3319]
[1736152370608,2.72,214.51,214.46,7.28870354]
[1736152370917,2.74,214.5,214.49,2.3318]
[1736152375318,2.74,214.5,214.49,2.3318]
[1736152375821,2.74,214.5,214.47,2.3321]
[1736152378725,5.0718,214.5,214.47,2.3321]
[1736152382331,7.28870354,214.48,214.4,7.28870354]
[1736152382522,7.28870354,214.46,214.38,64.32556237]
[1736152382719,2.3326,214.43,214.4,2.3328]
[1736152382926,2.68,214.42,214.38,71.61426591]
[1736152383126,2.68,214.42,214.38,64.32556237]
[1736152383830,2.68,214.42,214.39,2.333]
[1736152385023,2.68,214.42,214.39,9.62170354]
[1736152385228,2.68,214.42,214.41,2.3327]
[1736152385931,2.68,214.42,214.39,2.3329]
[1736152387233,2.68,214.42,214.4,2.3328]
[1736152387430,2.68,214.42,214.36,7.28870354]
[1736152387632,9.96870354,214.42,214.36,7.28870354]
[1736152388236,9.96870354,214.42,214.39,2.3329]
[1736152389733,7.28870354,214.4,214.24,25.9317383]
[1736152389933,7.28870354,214.38,214.24,25.9317383]
[1736152390239,2.68,214.37,214.24,25.9317383]
[1736152390540,5.0132,214.37,214.33,2.3336]
[1736152390940,5.0132,214.37,214.3,7.28870354]
[1736152390941,2.68,214.37,214.35,2.3333]
[1736152391142,2.68,214.37,214.3,7.28870354]
[1736152391338,2.68,214.37,214.24,25.9317383]
[1736152391339,7.28870354,214.36,214.21,9.1411]
[1736152391533,7.28870354,214.36,214.32,2.3337]
[1736152391737,2.68,214.35,214.32,2.3337]
[1736152392339,2.68,214.35,214.18,6.48293457]
[1736152392340,7.28870354,214.34,214.18,6.48293457]
[1736152392535,7.28870354,214.3,214.23,7.28870354]
[1736152392842,2.68,214.29,214.23,7.28870354]
[1736152393643,2.68,214.29,214.27,2.3342]
[1736152393845,2.68,214.29,214.23,7.28870354]
[1736152394245,2.68,214.29,214.19,1.4238]
[1736152394446,1.5211,214.4,214.26,7.28870354]
[1736152394637,7.28870354,214.35,214.26,7.28870354]
[1736152394837,2.68,214.34,214.31,2.3338]
[1736152395547,2.68,214.34,214.28,7.28870354]
[1736152396442,2.68,214.34,214.32,2.3337]
[1736152397547,2.68,214.34,214.31,2.3338]
[1736152400747,2.7,214.37,214.32,7.28870354]
[1736152400947,2.7,214.38,214.35,7.28870354]
[1736152402456,2.7,214.38,214.37,2.3332]
[1736152403142,2.9471,214.47,214.37,7.28870354]
[1736152403348,9.98870354,214.46,214.38,7.28870354]
[1736152403647,7.28870354,214.44,214.36,7.28870354]
[1736152404348,9.62110354,214.44,214.4,2.3328]
[1736152404552,7.28870354,214.44,214.36,7.28870354]
[1736152405052,7.28870354,214.44,214.38,7.28870354]
[1736152406645,9.62120354,214.44,214.38,7.28870354]
[1736152407444,9.62120354,214.44,214.4,2.3328]
[1736152408052,7.28870354,214.44,214.4,2.3328]
[1736152409554,9.62110354,214.44,214.4,2.3328]
[1736152410049,5.0323,214.46,214.42,2.3326]
[1736152410255,12.32100354,214.46,214.42,2.3326]
[1736152410553,9.98870354,214.46,214.43,2.3325]
[1736152411553,7.28870354,214.46,214.43,2.3325]
[1736152411755,2.68,214.45,214.43,2.3325]
[1736152411953,9.96870354,214.45,214.43,2.3325]
[1736152412554,9.96870354,214.45,214.42,2.3326]
[1736152412855,2.66,214.44,214.42,2.3326]
[1736152413558,2.66,214.44,214.38,7.28870354]
[1736152413751,2.66,214.44,214.43,2.3325]
[1736152414259,2.66,214.44,214.38,7.28870354]
[1736152414556,2.66,214.44,214.41,2.3327]
[1736152415356,7.28870354,214.45,214.41,2.3327]
[1736152415655,2.66,214.44,214.41,2.3327]
[1736152415851,2.66,214.44,214.38,7.28870354]
[1736152416057,2.66,214.44,214.38,9.62170354]
[1736152416759,2.66,214.43,214.3,7.1305]
[1736152417055,2.66,214.43,214.37,7.28870354]
[1736152417650,4.9926,214.43,214.38,2.333]
[1736152418252,4.9926,214.43,214.37,7.28870354]
[1736152418457,4.9926,214.43,214.39,2.333]
[1736152419555,2.66,214.43,214.37,7.28870354]
[1736152419758,4.9926,214.43,214.39,2.3329]
[1736152420057,2.66,214.43,214.39,2.3329]
[1736152420654,9.94870354,214.43,214.39,2.3329]
[1736152420953,7.28870354,214.41,214.27,62.11110485]
[1736152421148,7.28870354,214.36,214.29,7.28870354]
[1736152421349,2.66,214.35,214.29,7.28870354]
[1736152421547,2.66,214.35,214.29,9.62270354]
[1736152421548,2.3336,214.34,214.29,9.62270354]
[1736152422156,2.3336,214.34,214.29,7.28870354]
[1736152422459,2.3337,214.33,214.29,7.28870354]
[1736152422659,2.3337,214.33,214.27,69.39980839]
[1736152422859,2.3337,214.33,214.26,7.28870354]
[1736152423353,7.28870354,214.34,214.26,7.28870354]
[1736152423554,2.3338,214.32,214.26,7.28870354]
[1736152423854,7.28870354,214.34,214.26,7.28870354]
[1736152424052,2.3336,214.33,214.28,2.3341]
[1736152424858,2.3336,214.33,214.26,7.28870354]
[1736152425049,2.3336,214.33,214.29,2.334]
[1736152425753,7.28870354,214.34,214.27,2.3342]
[1736152426059,7.28870354,214.32,214.26,7.28870354]
[1736152426356,2.3339,214.31,214.26,9.62300354]
[1736152426550,2.66,214.3,214.26,9.62300354]
[1736152426751,2.66,214.3,214.26,7.28870354]
[1736152427655,4.9939,214.3,214.26,9.62310354]
[1736152427857,4.9939,214.3,214.26,2.3344]
[1736152429157,2.66,214.3,214.27,2.3342]
[1736152430959,2.66,214.3,214.25,9.62310354]
[1736152431562,4.994,214.3,214.25,9.62310354]
[1736152433765,2.3341,214.29,214.25,9.62310354]
[1736152438971,2.3341,214.29,214.25,7.28870354]
[1736152439171,2.66,214.3,214.26,2.3344]
[1736152440578,4.994,214.3,214.26,2.3344]
[1736152440779,12.28270354,214.3,214.26,2.3344]
[1736152443074,9.94870354,214.3,214.26,2.3344]
[1736152443282,2.3341,214.29,214.26,2.3344]
[1736152448089,2.66,214.3,214.27,2.3342]
[1736152449287,2.3339,214.31,214.27,2.3342]
[1736152449587,2.64,214.3,214.27,2.3342]
[1736152452284,4.974,214.3,214.26,9.62310354]
[1736152453088,4.974,214.3,214.27,2.3343]
[1736152455189,2.3341,214.29,214.24,7.28870354]
[1736152455683,2.3341,214.29,214.25,2.3345]
[1736152456082,2.64,214.3,214.25,2.3345]
[1736152456281,7.28870354,214.29,214.22,7.28870354]
[1736152456481,7.28870354,214.27,214.15,9.42081821]
[1736152456793,2.3346,214.24,214.19,7.28870354]
[1736152456992,2.64,214.23,214.19,9.62370354]
[1736152457187,2.64,214.23,214.19,7.28870354]
[1736152457487,2.64,214.23,214.22,2.3348]
[1736152458191,2.64,214.23,214.19,2.3351]
[1736152459401,2.64,214.23,214.15,2.9491]
[1736152459591,9.92870354,214.23,214.16,7.28870354]
[1736152459988,9.92870354,214.23,214.17,2.3353]
[1736152460189,2.3349,214.22,214.14,58.69095498]
[1736152460391,9.92870354,214.23,214.16,7.28870354]
[1736152460595,7.28870354,214.21,214.18,2.3352]
[1736152460794,9.62390354,214.19,214.13,7.28870354]
[1736152461093,2.64,214.18,214.13,7.28870354]
[1736152461801,2.64,214.18,214.16,2.3354]
[1736152463399,2.64,214.18,214.14,7.28870354]
[1736152463599,2.64,214.18,214.17,2.3354]
[1736152469301,3.50326684,214.32,214.17,7.28870354]
[1736152469499,7.28870354,214.26,214.2,7.28870354]
[1736152469695,2.64,214.25,214.2,7.28870354]
[1736152470496,2.64,214.24,214.2,7.28870354]
[1736152470999,2.64,214.23,214.22,2.3348]
[1736152471397,2.64,214.23,214.22,9.62350354]
[1736152471699,7.28870354,214.32,214.22,7.28870354]
[1736152471898,2.64,214.31,214.25,7.28870354]
[1736152472098,2.64,214.31,214.27,2.3342]
[1736152472296,2.64,214.31,214.25,7.28870354]
[1736152472695,2.64,214.31,214.27,2.3343]
[1736152473106,2.64,214.32,214.25,7.28870354]
[1736152473498,7.28870354,214.29,214.16,1.4848]
[1736152473702,7.28870354,214.29,214.22,7.28870354]
[1736152474003,2.3344,214.27,214.22,7.28870354]
[1736152474302,2.64,214.27,214.22,7.28870354]
[1736152475502,2.64,214.27,214.23,2.3347]
[1736152476006,2.64,214.27,214.24,2.3346]
[1736152478105,2.64,214.27,214.25,2.3345]
[1736152478904,2.64,214.27,214.26,2.3344]
[1736152479103,7.28870354,214.31,214.23,7.28870354]
[1736152479308,2.64,214.3,214.23,7.28870354]
[1736152480108,2.64,214.3,214.27,2.3342]
[1736152480600,7.28870354,214.31,214.23,7.28870354]
[1736152480806,2.64,214.3,214.23,7.28870354]
[1736152481008,2.64,214.3,214.25,7.28870354]
[1736152481212,2.64,214.3,214.26,2.3343]
[1736152481408,2.64,214.3,214.25,7.28870354]
[1736152482412,2.64,214.3,214.27,2.3342]
[1736152483509,9.62210354,214.35,214.27,7.28870354]
[1736152483712,2.64,214.34,214.27,7.28870354]
[1736152484012,2.64,214.33,214.27,7.28870354]
[1736152484415,2.3332,214.37,214.29,7.28870354]
[1736152484612,2.64,214.36,214.29,7.28870354]
[1736152486109,4.9734,214.36,214.31,2.3338]
[1736152486314,2.64,214.36,214.31,2.3338]
[1736152486717,7.28870354,214.35,214.31,2.3338]
[1736152487121,4.9733,214.36,214.32,2.3336]
[1736152487313,12.26200354,214.36,214.32,2.3336]
[1736152487615,9.62200354,214.36,214.32,2.3336]
[1736152487817,12.26200354,214.36,214.32,2.3336]
[1736152491218,12.26200354,214.36,214.29,7.28870354]
[1736152492226,12.26200354,214.36,214.31,2.3338]
[1736152492725,4.9733,214.36,214.31,2.3338]
[1736152493527,4.9733,214.36,214.29,7.28870354]
[1736152493825,4.9733,214.36,214.31,2.3338]
[1736152494726,2.3334,214.35,214.31,2.3338]
[1736152495930,7.28870354,214.38,214.29,7.28870354]
[1736152496235,2.64,214.37,214.33,7.28870354]
[1736152497234,2.3331,214.38,214.34,2.3334]
[1736152497434,2.64,214.38,214.33,7.28870354]
[1736152498033,4.9731,214.38,214.33,7.28870354]
[1736152498234,4.9731,214.38,214.32,7.28870354]
[1736152498436,4.9731,214.38,214.33,7.3335]
[1736152498638,2.64,214.38,214.33,7.3335]
[1736152498939,2.3332,214.37,214.33,7.3335]
[1736152499143,2.64,214.38,214.33,5.0]
[1736152500239,1.5283,214.45,214.33,7.3335]
[1736152500438,2.64,214.39,214.33,7.3335]
[1736152500743,9.92870354,214.39,214.33,7.3335]
[1736152501439,2.3332,214.37,214.33,7.3335]
[1736152502034,2.64,214.38,214.33,7.3335]
[1736152502236,7.28870354,214.37,214.33,5.0]
[1736152503143,7.28870354,214.35,214.33,5.0]
[1736152503336,7.28870354,214.35,214.25,7.28870354]
[1736152503537,7.28870354,214.32,214.2,2.9331]
[1736152503732,7.28870354,214.3,214.23,7.28870354]
[1736152503936,2.3343,214.27,214.23,7.28870354]
[1736152504234,2.64,214.31,214.25,7.28870354]
[1736152504437,2.3342,214.29,214.25,9.62320354]
[1736152504638,2.64,214.31,214.25,7.28870354]
[1736152505041,4.9739,214.31,214.27,2.3343]
[1736152505343,2.64,214.31,214.27,7.28870354]
[1736152506041,2.64,214.31,214.28,2.3341]
[1736152506242,2.64,214.31,214.27,7.28870354]
[1736152506437,2.64,214.31,214.29,7.28870354]
[1736152506835,2.64,214.31,214.3,2.3339]
[1736152507342,2.64,214.31,214.27,7.28870354]
[1736152508141,2.64,214.31,214.25,7.28870354]
[1736152508642,7.28870354,214.3,214.2,2.9331]
[1736152508837,7.28870354,214.28,214.21,7.28870354]
[1736152509441,2.3344,214.26,214.22,2.3348]
[1736152509642,9.92870354,214.26,214.17,1.5099]
[1736152509845,9.92870354,214.26,214.19,7.28870354]
[1736152511237,7.28870354,214.24,214.09,25.93947396]
[1736152511546,7.28870354,214.24,214.16,7.28870354]
[1736152511747,7.28870354,214.24,214.18,7.28870354]
[1736152511939,2.3348,214.22,214.18,9.62390354]
[1736152512144,2.64,214.21,214.18,9.62390354]
[1736152512743,2.64,214.21,214.2,7.28870354]
[1736152513144,2.64,214.21,214.11,1.4932]
[1736152513446,2.64,214.21,214.2,9.62370354]
[1736152514445,2.64,214.21,214.11,1.4932]
[1736152514446,2.3352,214.19,214.14,2.3357]
[1736152514948,7.28870354,214.2,214.11,1.4932]
[1736152515149,7.28870354,214.18,214.11,8.78190354]
[1736152515345,7.28870354,214.18,214.11,1.4932]
[1736152515541,2.3354,214.17,214.12,2.3358]
[1736152515743,2.64,214.16,214.13,7.28870354]
[1736152515951,2.64,214.15,214.13,7.28870354]
[1736152516449,2.64,214.15,214.14,2.3357]
[1736152519157,2.64,214.17,214.13,7.28870354]
[1736152519347,2.64,214.21,214.16,7.28870354]
[1736152519655,2.64,214.21,214.19,7.28870354]
[1736152519953,2.64,214.21,214.2,2.335]
[1736152522149,2.334,214.3,214.19,7.28870354]
[1736152522353,2.64,214.29,214.24,7.28870354]
[1736152522855,2.64,214.29,214.26,2.3343]
[1736152523444,4.9741,214.29,214.22,7.28870354]
[1736152524148,2.64,214.29,214.26,2.3344]
[1736152525359,2.64,214.29,214.22,7.28870354]
[1736152525556,2.64,214.29,214.27,2.3343]
[1736152526461,2.64,214.29,214.25,2.3344]
[1736152526862,2.64,214.29,214.22,7.28870354]
[1736152528366,9.62290354,214.28,214.15,1.3911]
[1736152528665,7.28870354,214.28,214.2,7.28870354]
[1736152529263,2.3344,214.27,214.22,2.3348]
[1736152529463,7.28870354,214.28,214.22,7.28870354]
[1736152529762,2.64,214.29,214.22,7.28870354]
[1736152529960,9.92870354,214.29,214.24,2.3345]
[1736152531270,2.64,214.28,214.24,2.3345]
[1736152531562,2.64,214.27,214.25,2.3345]
[1736152532363,2.64,214.27,214.26,2.3344]
[1736152534470,2.64,214.27,214.22,7.28870354]
[1736152534765,2.64,214.27,214.25,2.3345]
[1736152535567,2.64,214.27,214.15,1.3911]
[1736152535766,2.64,214.27,214.2,7.28870354]
[1736152536664,2.64,214.27,214.22,2.3347]
[1736152536665,4.9743,214.27,214.22,2.3347]
[1736152537559,2.3346,214.24,214.2,2.3349]
[1736152540671,2.3346,214.24,214.21,2.3349]
[1736152540867,2.3345,214.26,214.2,7.28870354]
[1736152541269,2.3345,214.26,214.21,2.3348]
[1736152541573,2.3345,214.26,214.2,7.28870354]
[1736152541767,2.3345,214.26,214.23,2.3347]
[1736152542471,7.28870354,214.3,214.25,2.3345]
[1736152542663,2.64,214.29,214.25,2.3345]
[1736152543272,7.28870354,214.3,214.22,7.28870354]
[1736152543476,2.64,214.29,214.26,2.3344]
[1736152543669,2.64,214.29,214.24,7.28870354]
[1736152543876,9.62240354,214.33,214.29,2.334]
[1736152544074,2.64,214.32,214.26,7.28870354]
[1736152544573,2.3335,214.34,214.26,7.28870354]
[1736152544775,4.4229,214.37,214.28,7.28870354]
[1736152544977,9.92870354,214.36,214.28,7.28870354]
[1736152545176,9.92870354,214.36,214.29,2.334]
[1736152545374,7.28870354,214.34,214.29,2.334]
[1736152545678,9.62230354,214.34,214.29,2.334]
[1736152545881,9.62230354,214.34,214.18,1.5321]
[1736152545882,2.64,214.33,214.27,2.3342]
[1736152546782,7.28870354,214.32,214.27,2.3342]
[1736152547377,7.28870354,214.3,214.24,7.28870354]
[1736152547676,7.28870354,214.3,214.18,1.5321]
[1736152547677,7.28870354,214.28,214.22,7.28870354]
[1736152547878,2.3345,214.26,214.21,2.3349]
[1736152548578,7.28870354,214.26,214.2,7.28870354]
[1736152548781,2.3346,214.24,214.19,2.335]
[1736152549385,2.335,214.21,214.17,2.3353]
[1736152549681,4.975,214.21,214.16,7.28870354]
[1736152550475,4.975,214.21,214.16,9.62410354]
[1736152550681,4.975,214.21,214.16,2.3354]
[1736152550977,7.28870354,214.2,214.14,2.3356]
[1736152551682,2.3353,214.18,214.14,2.3356]
[1736152552681,2.3353,214.18,214.13,7.28870354]
[1736152554483,2.3353,214.18,214.13,9.62450354]
[1736152555578,9.62400354,214.18,214.13,2.3358]
[1736152555790,2.3354,214.17,214.13,2.3358]
[1736152555980,2.64,214.16,214.13,2.3358]
[1736152560280,2.64,214.16,214.12,7.28870354]
[1736152560480,2.64,214.16,214.13,2.3358]
[1736152560882,2.64,214.17,214.15,2.3356]
[1736152561090,2.64,214.17,214.16,7.28870354]
[1736152561490,9.62350354,214.23,214.16,7.28870354]
[1736152561694,2.64,214.22,214.18,7.28870354]
[1736152561889,2.64,214.21,214.18,7.28870354]
[1736152563593,2.64,214.21,214.2,2.335]
[1736152564293,2.64,214.21,214.19,2.3351]
[1736152565890,2.64,214.21,214.2,2.335]
[1736152567195,5.2466,214.28,214.2,7.28870354]
[1736152567496,2.64,214.27,214.22,7.28870354]
[1736152567703,2.94514756,214.32,214.12,2.64]
[1736152567704,2.64,214.28,214.27,2.3343]
[1736152567998,2.64,214.29,214.27,2.3343]
[1736152568997,2.64,214.29,214.28,2.3342]
[1736152571000,2.64,214.29,214.17,2.64]
[1736152571194,2.64,214.29,214.23,7.28870354]
[1736152571395,7.28870354,214.28,214.21,7.28870354]
[1736152571898,2.3345,214.25,214.21,2.3349]
[1736152572102,2.64,214.24,214.21,2.3349]
[1736152572599,2.64,214.24,214.22,2.3348]
[1736152574303,2.64,214.24,214.23,9.62340354]
[1736152574999,2.64,214.28,214.23,7.28870354]
[1736152575197,2.64,214.28,214.27,2.3343]
[1736152576302,2.64,214.28,214.18,2.64]
[1736152576599,2.64,214.28,214.25,2.3344]
[1736152576796,2.64,214.28,214.23,7.28870354]
[1736152577002,2.64,214.28,214.15,2.64]
[1736152577301,2.64,214.28,214.24,2.3346]
[1736152578101,2.64,214.28,214.19,11.50806754]
[1736152580199,2.64,214.28,214.25,2.3344]
[1736152580698,2.64,214.28,214.19,11.50806754]
[1736152580895,2.64,214.28,214.27,2.3343]
[1736152586302,2.64,214.28,214.23,2.3346]
[1736152586507,2.64,214.28,214.22,11.50806754]
[1736152587004,2.64,214.28,214.27,2.3343]
[1736152596221,2.3338,214.32,214.22,11.50806754]
[1736152596418,2.64,214.31,214.28,2.3341]
[1736152597720,2.64,214.3,214.28,2.3341]
[1736152598323,2.64,214.33,214.25,11.50806754]
[1736152598520,2.64,214.34,214.25,11.50806754]
[1736152599324,2.64,214.34,214.32,2.3336]
[1736152600019,2.64,214.34,214.29,7.36043089]
[1736152600325,2.64,214.35,214.33,2.3336]
[1736152600730,9.69373089,214.37,214.33,2.3336]
[1736152600924,2.64,214.34,214.33,2.3336]
[1736152601124,9.69373089,214.37,214.33,2.3336]
[1736152601325,2.64,214.36,214.33,2.3336]
[1736152601823,2.3336,214.34,214.26,2.3343]
[1736152602021,7.36043089,214.35,214.23,1.5413]
[1736152602022,7.36043089,214.35,214.27,7.36043089]
[1736152602420,2.3337,214.33,214.29,2.334]
[1736152602621,9.69413089,214.33,214.27,7.36043089]
[1736152603522,2.3337,214.32,214.29,2.334]
[1736152603724,2.64,214.31,214.29,2.334]
[1736152606319,7.36043089,214.33,214.3,2.3339]
[1736152606516,2.64,214.32,214.3,2.3339]
[1736152607427,4.9737,214.32,214.29,2.334]
[1736152609632,12.33413089,214.32,214.28,2.3341]
[1736152614931,2.3339,214.31,214.28,2.3341]
[1736152620933,2.3339,214.31,214.27,2.3342]
[1736152621131,2.3339,214.31,214.27,7.36043089]
[1736152621336,2.3333,214.36,214.29,7.36043089]
[1736152621530,2.64,214.35,214.31,2.3338]
[1736152621738,2.64,214.34,214.31,9.69423089]
[1736152622134,2.3335,214.35,214.31,9.69423089]
[1736152622333,2.64,214.34,214.31,9.69423089]
[1736152623137,2.64,214.34,214.32,2.3337]
[1736152624134,2.3333,214.36,214.32,2.3337]
[1736152624330,2.64,214.35,214.32,2.3337]
[1736152625140,2.64,214.35,214.31,7.36043089]
[1736152625338,2.64,214.35,214.32,2.3337]
[1736152625843,2.64,214.35,214.34,2.3335]
[1736152626741,2.64,214.35,214.31,7.36043089]
[1736152626742,2.64,214.35,214.33,2.3336]
[1736152626941,2.64,214.35,214.31,7.36043089]
[1736152627137,4.9734,214.35,214.31,7.36043089]
[1736152627443,2.64,214.35,214.32,2.3337]
[1736152627833,2.64,214.35,214.31,7.36043089]
[1736152628737,7.36043089,214.37,214.31,7.36043089]
[1736152628942,7.36043089,214.35,214.29,7.36043089]
[1736152629144,2.3338,214.32,214.29,7.36043089]
[1736152629847,2.3338,214.32,214.28,2.3342]
[1736152630044,7.36043089,214.33,214.27,7.36043089]
[1736152630248,7.36043089,214.33,214.27,9.69463089]
[1736152630843,2.3339,214.31,214.27,9.69463089]
[1736152633253,7.36043089,214.33,214.27,7.36043089]
[1736152633442,2.64,214.34,214.29,7.36043089]
[1736152634050,2.64,214.33,214.29,7.36043089]
[1736152634250,2.64,214.33,214.3,2.3339]
[1736152634645,3.50186327,214.41,214.29,7.36043089]
[1736152634850,7.36043089,214.36,214.29,7.36043089]
[1736152635049,2.64,214.35,214.29,7.36043089]
[1736152635651,4.9734,214.35,214.31,2.3338]
[1736152636547,2.64,214.34,214.31,2.3338]
[1736152636747,2.64,214.34,214.23,1.5413]
[1736152636949,2.64,214.34,214.28,7.36043089]
[1736152637154,2.64,214.34,214.3,2.3339]
[1736152638448,2.3336,214.33,214.3,2.3339]
[1736152639957,2.3336,214.33,214.3,9.69433089]
[1736152640746,4.9735,214.34,214.3,9.69433089]
[1736152642958,2.3329,214.4,214.36,2.3333]
[1736152643253,2.64,214.39,214.36,7.36043089]
[1736152643456,2.64,214.39,214.32,7.36043089]
[1736152643855,2.64,214.38,214.34,2.3335]
[1736152644058,7.36043089,214.41,214.34,2.3335]
[1736152644251,2.3332,214.38,214.34,2.3335]
[1736152644457,2.3332,214.38,214.34,9.69393089]
[1736152646358,2.3331,214.39,214.34,9.69393089]
[1736152646558,2.64,214.4,214.34,7.36043089]
[1736152647352,2.64,214.4,214.35,2.3334]
[1736152647856,2.64,214.4,214.34,7.36043089]
[1736152648058,4.973,214.4,214.36,2.3333]
[1736152648251,4.973,214.4,214.36,7.36043089]
[1736152648756,53.4,214.43,214.38,7.36043089]
[1736152648954,2.64,214.42,214.38,7.36043089]
[1736152650261,4.9726,214.42,214.38,7.36043089]
[1736152651061,4.9726,214.42,214.38,9.69353089]
[1736152660365,2.64,214.42,214.36,7.36043089]
[1736152661374,2.333,214.4,214.36,9.69373089]
[1736152662167,2.333,214.39,214.36,9.69373089]
[1736152663267,2.3333,214.36,214.32,9.69403089]
[1736152667275,4.9732,214.37,214.33,2.3336]
[1736152668380,2.3333,214.36,214.33,2.3336]
[1736152670774,2.3333,214.36,214.3,4.3375]
[1736152671082,10.00043089,214.37,214.3,7.36043089]
[1736152672579,2.3335,214.34,214.3,9.69433089]
[1736152675779,10.00043089,214.37,214.3,9.69433089]
[1736152676884,2.3335,214.34,214.3,9.69433089]
[1736152680586,2.64,214.35,214.32,7.36043089]
[1736152680787,2.64,214.35,214.34,7.36043089]
[1736152681687,2.64,214.35,214.34,9.69393089]
[1736152683182,2.3332,214.38,214.34,9.69393089]
[1736152683384,2.64,214.37,214.34,9.69393089]
[1736152687085,2.64,214.37,214.36,7.36043089]
[1736152687790,3.50113733,214.46,214.36,7.36043089]
[1736152687991,2.3326,214.43,214.39,9.69343089]
[1736152688289,2.64,214.45,214.41,7.36043089]
[1736152688684,2.64,214.44,214.41,7.36043089]
[1736152688885,4.9725,214.44,214.41,7.36043089]
[1736152691696,2.3325,214.44,214.41,7.36043089]
[1736152691890,4.9725,214.44,214.41,7.36043089]
[1736152695692,2.3326,214.43,214.41,7.36043089]
[1736152699892,2.64,214.44,214.39,2.3329]
[1736152699893,2.3327,214.42,214.39,7.36043089]
[1736152700091,10.00043089,214.44,214.37,7.36043089]
[1736152701496,2.3329,214.41,214.37,7.36043089]
[1736152701992,2.3329,214.41,214.39,7.36043089]
[1736152702294,2.3327,214.42,214.39,7.36043089]
[1736152704400,2.3327,214.42,214.39,9.69343089]
[1736152705401,2.3326,214.43,214.39,9.69343089]
[1736152707996,2.3328,214.41,214.37,7.36043089]
[1736152709201,2.3327,214.42,214.37,7.36043089]
[1736152709404,2.3327,214.42,214.39,7.36043089]
[1736152711195,2.3328,214.41,214.39,7.36043089]
[1736152711399,2.3328,214.41,214.38,2.333]
[1736152712999,2.3327,214.42,214.38,2.333]
[1736152713203,2.3327,214.42,214.39,2.3329]
[1736152713905,2.3327,214.42,214.39,9.69333089]
[1736152714205,4.9727,214.42,214.39,9.69333089]
[1736152717308,2.64,214.42,214.37,7.36043089]
[1736152717803,7.36043089,214.41,214.32,4.4018]
[1736152718004,7.36043089,214.39,214.27,26.00598413]
[1736152718204,7.36043089,214.39,214.31,7.36043089]
[1736152718400,2.3334,214.36,214.32,2.3337]
[1736152718609,2.3334,214.36,214.31,7.36043089]
[1736152718610,2.64,214.35,214.31,7.36043089]
[1736152719007,2.64,214.35,214.29,7.36043089]
[1736152719508,2.3335,214.34,214.3,2.3339]
[1736152719710,2.64,214.35,214.29,7.36043089]
[1736152720212,3.50084081,214.45,214.33,7.36043089]
[1736152720411,7.36043089,214.4,214.33,7.36043089]
[1736152720612,2.64,214.39,214.33,7.36043089]